fUSD/lending_fUSD_20260606
["ID","MTS","AMOUNT","RATE_DAILY","PERIOD"]
[424274674,1780728641000,-500.0,0.00014,2]
[424274676,1780728641000,-500.0,0.00014,2]
[424274673,1780728641000,-500.0,0.00014,2]
[424274663,1780728641000,-500.0,0.00014,2]
[424274665,1780728641000,-500.0,0.00014,2]
[424274666,1780728641000,-500.0,0.00014,2]
[424274670,1780728641000,-500.0,0.00014,2]
[424274667,1780728641000,-500.0,0.00014,2]
[424274671,1780728641000,-500.0,0.00014,2]
[424274668,1780728641000,-500.0,0.00014,2]
[424274672,1780728641000,-500.0,0.00014,2]
[424274669,1780728641000,-500.0,0.00014,2]
[424274677,1780728641000,-500.0,0.00014,2]
[424274684,1780728641000,-500.0,0.00014,2]
[424274683,1780728641000,-500.0,0.00014,2]
[424274680,1780728641000,-500.0,0.00014,2]
[424274678,1780728641000,-500.0,0.00014,2]
[424274686,1780728641000,-500.0,0.00014,2]
[424274681,1780728641000,-500.0,0.00014,2]
[424274679,1780728641000,-500.0,0.00014,2]
[424274682,1780728641000,-500.0,0.00014,2]
[424274685,1780728641000,-500.0,0.00014,2]
[424274688,1780728641000,-500.0,0.00014,2]
[424274664,1780728641000,-500.0,0.00014,2]
[424274675,1780728641000,-500.0,0.00014,2]
[424274661,1780728641000,-500.0,0.00014,2]
[424274642,1780728641000,-500.0,0.00014,2]
[424274662,1780728641000,-500.0,0.00014,2]
[424274637,1780728641000,-500.0,0.00014,2]
[424274635,1780728641000,-500.0,0.00014,2]
[424274636,1780728641000,-500.0,0.00014,2]
[424274639,1780728641000,-500.0,0.00014,2]
[424274640,1780728641000,-500.0,0.00014,2]
[424274638,1780728641000,-500.0,0.00014,2]
[424274641,1780728641000,-500.0,0.00014,2]
[424274643,1780728641000,-500.0,0.00014,2]
[424274648,1780728641000,-500.0,0.00014,2]
[424274647,1780728641000,-500.0,0.00014,2]
[424274644,1780728641000,-500.0,0.00014,2]
[424274660,1780728641000,-500.0,0.00014,2]
[424274645,1780728641000,-500.0,0.00014,2]
[424274649,1780728641000,-500.0,0.00014,2]
[424274650,1780728641000,-500.0,0.00014,2]
[424274652,1780728641000,-500.0,0.00014,2]
[424274651,1780728641000,-500.0,0.00014,2]
[424274659,1780728641000,-500.0,0.00014,2]
[424274656,1780728641000,-500.0,0.00014,2]
[424274653,1780728641000,-500.0,0.00014,2]
[424274657,1780728641000,-500.0,0.00014,2]
[424274654,1780728641000,-500.0,0.00014,2]
[424274655,1780728641000,-500.0,0.00014,2]
[424274658,1780728641000,-500.0,0.00014,2]
[424274646,1780728641000,-500.0,0.00014,2]
[424274699,1780728641000,-500.0,0.00014,2]
[424274693,1780728641000,-500.0,0.00014,2]
[424274689,1780728641000,-500.0,0.00014,2]
[424274714,1780728641000,-500.0,0.00014,2]
[424274718,1780728641000,-500.0,0.00014,2]
[424274717,1780728641000,-412.17,0.00014,2]
[424274724,1780728641000,-500.0,0.00014,2]
[424274731,1780728641000,-500.0,0.00014,2]
[424274733,1780728641000,-500.0,0.00014,2]
[424274725,1780728641000,-500.0,0.00014,2]
[424274729,1780728641000,-500.0,0.00014,2]
[424274728,1780728641000,-500.0,0.00014,2]
[424274734,1780728641000,-500.0,0.00014,2]
[424274727,1780728641000,-500.0,0.00014,2]
[424274716,1780728641000,-500.0,0.00014,2]
[424274726,1780728641000,-500.0,0.00014,2]
[424274732,1780728641000,-500.0,0.00014,2]
[424274737,1780728641000,-500.0,0.00014,2]
[424274736,1780728641000,-500.0,0.00014,2]
[424274740,1780728641000,-500.0,0.00014,2]
[424274738,1780728641000,-500.0,0.00014,2]
[424274744,1780728641000,-2000.0,0.00014,2]
[424274743,1780728641000,-2000.0,0.00014,2]
[424274742,1780728641000,-250.0,0.00014,2]
[424274739,1780728641000,-500.0,0.00014,2]
[424274741,1780728641000,-500.0,0.00014,2]
[424274691,1780728641000,-500.0,0.00014,2]
[424274730,1780728641000,-500.0,0.00014,2]
[424274719,1780728641000,-500.0,0.00014,2]
[424274735,1780728641000,-500.0,0.00014,2]
[424274715,1780728641000,-500.0,0.00014,2]
[424274694,1780728641000,-500.0,0.00014,2]
[424274720,1780728641000,-500.0,0.00014,2]
[424274698,1780728641000,-500.0,0.00014,2]
[424274697,1780728641000,-500.0,0.00014,2]
[424274687,1780728641000,-500.0,0.00014,2]
[424274696,1780728641000,-500.0,0.00014,2]
[424274690,1780728641000,-500.0,0.00014,2]
[424274695,1780728641000,-500.0,0.00014,2]
[424274700,1780728641000,-500.0,0.00014,2]
[424274702,1780728641000,-500.0,0.00014,2]
[424274704,1780728641000,-500.0,0.00014,2]
[424274701,1780728641000,-500.0,0.00014,2]
[424274692,1780728641000,-500.0,0.00014,2]
[424274713,1780728641000,-500.0,0.00014,2]
[424274711,1780728641000,-500.0,0.00014,2]
[424274705,1780728641000,-500.0,0.00014,2]
[424274710,1780728641000,-500.0,0.00014,2]
[424274709,1780728641000,-500.0,0.00014,2]
[424274706,1780728641000,-500.0,0.00014,2]
[424274723,1780728641000,-500.0,0.00014,2]
[424274707,1780728641000,-500.0,0.00014,2]
[424274708,1780728641000,-500.0,0.00014,2]
[424274721,1780728641000,-500.0,0.00014,2]
[424274712,1780728641000,-500.0,0.00014,2]
[424274722,1780728641000,-500.0,0.00014,2]
[424274703,1780728641000,-500.0,0.00014,2]
[424274793,1780728642000,-1548.0,0.00014261,2]
[424274788,1780728642000,-1548.0,0.00014261,2]
[424274785,1780728642000,-1548.0,0.00014261,2]
[424274803,1780728642000,-291.04779362,0.00014387,2]
[424274804,1780728642000,-500.0,0.00014452,2]
[424274786,1780728642000,-1548.0,0.00014261,2]
[424274789,1780728642000,-1548.0,0.00014261,2]
[424274782,1780728642000,-152.0,0.00014261,2]
[424274780,1780728642000,-1548.0,0.00014261,2]
[424274779,1780728642000,-11591.82977358,0.00014259,2]
[424274776,1780728642000,-165.12182,0.0001425,2]
[424274807,1780728642000,-500.0,0.00014452,2]
[424274790,1780728642000,-1548.0,0.00014261,2]
[424274806,1780728642000,-500.0,0.00014452,2]
[424274820,1780728642000,-500.0,0.00014644,2]
[424274795,1780728642000,-151.0,0.00014261,2]
[424274800,1780728642000,-3033.0,0.00014274,5]
[424274799,1780728642000,-1500.0,0.00014262,2]
[424274798,1780728642000,-1030.0,0.00014262,2]
[424274801,1780728642000,-264.69626257,0.00014331,2]
[424274802,1780728642000,-166.66,0.00014384,2]
[424274808,1780728642000,-500.0,0.00014452,2]
[424274809,1780728642000,-500.0,0.00014452,2]
[424274810,1780728642000,-621.009,0.00014452,2]
[424274816,1780728642000,-6111.0,0.00014609,2]
[424274819,1780728642000,-500.0,0.00014644,2]
[424274812,1780728642000,-15000.0,0.00014566,2]
[424274791,1780728642000,-1548.0,0.00014261,2]
[424274805,1780728642000,-500.0,0.00014452,2]
[424274777,1780728642000,-165.12182,0.0001425,2]
[424274745,1780728642000,-315.0,0.00014,2]
[424274771,1780728642000,-500.0,0.00014249,2]
[424274814,1780728642000,-6111.0,0.00014591,2]
[424274746,1780728642000,-2898.0,0.00014,2]
[424274747,1780728642000,-887.0,0.00014,2]
[424274748,1780728642000,-2000.0,0.00014,2]
[424274750,1780728642000,-2000.0,0.00014,2]
[424274749,1780728642000,-309.0,0.00014,2]
[424274754,1780728642000,-165.12182,0.00014,2]
[424274755,1780728642000,-165.12182,0.00014,2]
[424274752,1780728642000,-1000.0,0.00014,2]
[424274751,1780728642000,-2000.0,0.00014,2]
[424274753,1780728642000,-165.12182,0.00014,2]
[424274759,1780728642000,-5628.5437509,0.00014171,2]
[424274756,1780728642000,-165.12182,0.00014,2]
[424274758,1780728642000,-166.66,0.0001411,2]
[424274757,1780728642000,-1751.8,0.0001408,2]
[424274760,1780728642000,-166.66,0.00014247,2]
[424274761,1780728642000,-552.93,0.00014249,2]
[424274763,1780728642000,-552.93,0.00014249,2]
[424274774,1780728642000,-151.0,0.0001425,2]
[424274773,1780728642000,-1014249.30306982,0.0001425,2]
[424274762,1780728642000,-552.93,0.00014249,2]
[424274765,1780728642000,-552.97551596,0.00014249,2]
[424274764,1780728642000,-552.93,0.00014249,2]
[424274766,1780728642000,-153.398234,0.00014249,2]
[424274767,1780728642000,-151.0,0.00014249,2]
[424274768,1780728642000,-500.0,0.00014249,2]
[424274769,1780728642000,-500.0,0.00014249,2]
[424274772,1780728642000,-250.90653434,0.00014249,2]
[424274770,1780728642000,-500.0,0.00014249,2]
[424274775,1780728642000,-165.12182,0.0001425,2]
[424274813,1780728642000,-405.0,0.00014579,2]
[424274778,1780728642000,-165.12182,0.0001425,2]
[424274811,1780728642000,-350.0,0.00014496,2]
[424274849,1780728642000,-500.0,0.00014644,2]
[424274850,1780728642000,-500.0,0.00014644,2]
[424274847,1780728642000,-500.0,0.00014644,2]
[424274851,1780728642000,-500.0,0.00014644,2]
[424274857,1780728642000,-500.0,0.00014644,2]
[424274856,1780728642000,-500.0,0.00014644,2]
[424274855,1780728642000,-500.0,0.00014644,2]
[424274854,1780728642000,-500.0,0.00014644,2]
[424274852,1780728642000,-500.0,0.00014644,2]
[424274861,1780728642000,-500.0,0.00014644,2]
[424274862,1780728642000,-500.0,0.00014644,2]
[424274870,1780728642000,-500.0,0.00014644,2]
[424274872,1780728642000,-500.0,0.00014644,2]
[424274873,1780728642000,-500.0,0.00014644,2]
[424274871,1780728642000,-500.0,0.00014644,2]
[424274874,1780728642000,-500.0,0.00014644,2]
[424274866,1780728642000,-500.0,0.00014644,2]
[424274863,1780728642000,-500.0,0.00014644,2]
[424274864,1780728642000,-500.0,0.00014644,2]
[424274865,1780728642000,-500.0,0.00014644,2]
[424274869,1780728642000,-500.0,0.00014644,2]
[424274867,1780728642000,-500.0,0.00014644,2]
[424274868,1780728642000,-500.0,0.00014644,2]
[424274876,1780728642000,-500.0,0.00014644,2]
[424274875,1780728642000,-500.0,0.00014644,2]
[424274877,1780728642000,-500.0,0.00014644,2]
[424274881,1780728642000,-500.0,0.00014644,2]
[424274880,1780728642000,-500.0,0.00014644,2]
[424274879,1780728642000,-500.0,0.00014644,2]
[424274853,1780728642000,-500.0,0.00014644,2]
[424274859,1780728642000,-500.0,0.00014644,2]
[424274817,1780728642000,-151.0,0.00014644,2]
[424274860,1780728642000,-500.0,0.00014644,2]
[424274878,1780728642000,-500.0,0.00014644,2]
[424274815,1780728642000,-5584.65066875,0.00014607,2]
[424274818,1780728642000,-1000.0,0.00014644,2]
[424274822,1780728642000,-500.0,0.00014644,2]
[424274832,1780728642000,-500.0,0.00014644,2]
[424274831,1780728642000,-500.0,0.00014644,2]
[424274830,1780728642000,-500.0,0.00014644,2]
[424274833,1780728642000,-500.0,0.00014644,2]
[424274821,1780728642000,-500.0,0.00014644,2]
[424274823,1780728642000,-500.0,0.00014644,2]
[424274826,1780728642000,-500.0,0.00014644,2]
[424274827,1780728642000,-500.0,0.00014644,2]
[424274829,1780728642000,-500.0,0.00014644,2]
[424274825,1780728642000,-500.0,0.00014644,2]
[424274828,1780728642000,-500.0,0.00014644,2]
[424274824,1780728642000,-500.0,0.00014644,2]
[424274836,1780728642000,-500.0,0.00014644,2]
[424274834,1780728642000,-500.0,0.00014644,2]
[424274858,1780728642000,-500.0,0.00014644,2]
[424274839,1780728642000,-500.0,0.00014644,2]
[424274840,1780728642000,-500.0,0.00014644,2]
[424274838,1780728642000,-500.0,0.00014644,2]
[424274842,1780728642000,-500.0,0.00014644,2]
[424274845,1780728642000,-500.0,0.00014644,2]
[424274843,1780728642000,-500.0,0.00014644,2]
[424274848,1780728642000,-500.0,0.00014644,2]
[424274841,1780728642000,-500.0,0.00014644,2]
[424274846,1780728642000,-500.0,0.00014644,2]
[424274835,1780728642000,-500.0,0.00014644,2]
[424274837,1780728642000,-500.0,0.00014644,2]
[424274844,1780728642000,-500.0,0.00014644,2]
[424274922,1780728643000,-200.0,0.00014767,2]
[424274923,1780728643000,-11591.82977358,0.00014779,2]
[424274925,1780728643000,-173.87,0.000148,2]
[424274924,1780728643000,-173.87,0.000148,2]
[424274926,1780728643000,-173.87,0.000148,2]
[424274929,1780728643000,-1599.66,0.000148,2]
[424274920,1780728643000,-446.0,0.00014736,2]
[424274928,1780728643000,-1599.66,0.000148,2]
[424274918,1780728643000,-1400.0,0.00014726,2]
[424274919,1780728643000,-500.0,0.00014726,2]
[424274927,1780728643000,-173.89,0.000148,2]
[424274921,1780728643000,-15000.0,0.00014762,2]
[424274917,1780728643000,-6111.0,0.00014724,2]
[424274931,1780728643000,-1599.66,0.000148,2]
[424274957,1780728643000,-500.0,0.00015,2]
[424274943,1780728643000,-12441.01536247,0.000149,3]
[424274942,1780728643000,-460.0,0.00014897,2]
[424274933,1780728643000,-15000.0,0.00014809,2]
[424274930,1780728643000,-1599.66,0.000148,2]
[424274935,1780728643000,-1555.5,0.0001481,2]
[424274934,1780728643000,-1068.11,0.0001481,2]
[424274936,1780728643000,-200.0,0.00014823,2]
[424274932,1780728643000,-1599.68,0.000148,2]
[424274937,1780728643000,-15000.0,0.00014828,2]
[424274938,1780728643000,-8341.86759205,0.0001485,2]
[424274940,1780728643000,-183.0,0.00014882,2]
[424274945,1780728643000,-446.0,0.00014903,2]
[424274956,1780728643000,-1019.0,0.00015,2]
[424274912,1780728643000,-19482.23255825,0.000147,2]
[424274941,1780728643000,-350.0,0.00014887,2]
[424274914,1780728643000,-200.0,0.00014711,2]
[424274896,1780728643000,-500.0,0.00014644,2]
[424274910,1780728643000,-2322.0,0.0001468,2]
[424274944,1780728643000,-5628.5437509,0.000149,2]
[424274882,1780728643000,-500.0,0.00014644,2]
[424274886,1780728643000,-500.0,0.00014644,2]
[424274887,1780728643000,-500.0,0.00014644,2]
[424274883,1780728643000,-500.0,0.00014644,2]
[424274885,1780728643000,-500.0,0.00014644,2]
[424274884,1780728643000,-500.0,0.00014644,2]
[424274888,1780728643000,-500.0,0.00014644,2]
[424274891,1780728643000,-500.0,0.00014644,2]
[424274895,1780728643000,-500.0,0.00014644,2]
[424274890,1780728643000,-500.0,0.00014644,2]
[424274893,1780728643000,-500.0,0.00014644,2]
[424274889,1780728643000,-500.0,0.00014644,2]
[424274892,1780728643000,-500.0,0.00014644,2]
[424274908,1780728643000,-2322.0,0.0001468,2]
[424274894,1780728643000,-500.0,0.00014644,2]
[424274901,1780728643000,-165.12182,0.00014644,2]
[424274899,1780728643000,-500.0,0.00014644,2]
[424274898,1780728643000,-500.0,0.00014644,2]
[424274900,1780728643000,-165.12182,0.00014644,2]
[424274902,1780728643000,-165.12182,0.00014644,2]
[424274906,1780728643000,-971637.9004432,0.00014644,2]
[424274907,1780728643000,-15000.0,0.00014645,2]
[424274904,1780728643000,-2400.8700076,0.00014644,2]
[424274905,1780728643000,-109697.6501522,0.00014644,2]
[424274915,1780728643000,-500.0,0.00014712,2]
[424274903,1780728643000,-165.121811,0.00014644,2]
[424274911,1780728643000,-1328.90577125,0.000147,2]
[424274916,1780728643000,-350.0,0.00014721,2]
[424274913,1780728643000,-350.0,0.00014701,2]
[424274897,1780728643000,-500.0,0.00014644,2]
[424274946,1780728643000,-350.0,0.00014916,2]
[424274939,1780728643000,-200.0,0.00014879,2]
[424274947,1780728643000,-446.0,0.00014919,2]
[424274987,1780728643000,-1000.0,0.00015,2]
[424274996,1780728643000,-194.65205172,0.00015,2]
[424274948,1780728643000,-6111.0,0.00014944,2]
[424274999,1780728643000,-2000.0,0.00015,2]
[424274998,1780728643000,-2863.99,0.00015,2]
[424274988,1780728643000,-1000.0,0.00015,2]
[424274997,1780728643000,-286.33,0.00015,2]
[424274986,1780728643000,-1000.0,0.00015,2]
[424274989,1780728643000,-1000.0,0.00015,2]
[424274991,1780728643000,-1000.0,0.00015,2]
[424274990,1780728643000,-1000.0,0.00015,2]
[424274992,1780728643000,-1000.0,0.00015,2]
[424274994,1780728643000,-1000.0,0.00015,2]
[424274993,1780728643000,-1000.0,0.00015,2]
[424274980,1780728643000,-1000.0,0.00015,2]
[424275001,1780728643000,-2000.0,0.00015,2]
[424275003,1780728643000,-2000.0,0.00015,2]
[424275002,1780728643000,-1776.23,0.00015,2]
[424275000,1780728643000,-2000.0,0.00015,2]
[424275005,1780728643000,-1944.06,0.00015,2]
[424275004,1780728643000,-1240.09,0.00015,2]
[424275009,1780728643000,-2000.0,0.00015,2]
[424275006,1780728643000,-2000.0,0.00015,2]
[424275010,1780728643000,-1600.02,0.00015,2]
[424275008,1780728643000,-2000.0,0.00015,2]
[424275007,1780728643000,-2000.0,0.00015,2]
[424275012,1780728643000,-1850.01,0.00015,2]
[424275014,1780728643000,-2000.0,0.00015,2]
[424275013,1780728643000,-150.0,0.00015,2]
[424275015,1780728643000,-400.0,0.00015,2]
[424275011,1780728643000,-2000.0,0.00015,2]
[424274977,1780728643000,-1000.0,0.00015,2]
[424274995,1780728643000,-1000.0,0.00015,2]
[424274981,1780728643000,-1000.0,0.00015,2]
[424274955,1780728643000,-566331.74703574,0.00015,2]
[424274954,1780728643000,-17525167.77534734,0.00015,2]
[424274950,1780728643000,-10000.0,0.00014986,2]
[424274953,1780728643000,-250.0,0.00014999,2]
[424274952,1780728643000,-1000.0,0.00014999,2]
[424274949,1780728643000,-1777.0,0.00014959,2]
[424275016,1780728643000,-690.35797556,0.00015,2]
[424274951,1780728643000,-264.69626257,0.00014999,2]
[424274959,1780728643000,-500.0,0.00015,2]
[424274969,1780728643000,-227271.84271732,0.00015,2]
[424274976,1780728643000,-1000.0,0.00015,2]
[424274958,1780728643000,-500.0,0.00015,2]
[424274960,1780728643000,-500.0,0.00015,2]
[424274961,1780728643000,-500.0,0.00015,2]
[424274962,1780728643000,-500.0,0.00015,2]
[424274970,1780728643000,-1000.0,0.00015,2]
[424274968,1780728643000,-8099.05402124,0.00015,2]
[424274975,1780728643000,-1000.0,0.00015,2]
[424274979,1780728643000,-1000.0,0.00015,2]
[424274964,1780728643000,-502.5,0.00015,2]
[424274974,1780728643000,-1000.0,0.00015,2]
[424274973,1780728643000,-1000.0,0.00015,2]
[424274984,1780728643000,-1000.0,0.00015,2]
[424274978,1780728643000,-1000.0,0.00015,2]
[424274982,1780728643000,-1000.0,0.00015,2]
[424274972,1780728643000,-1000.0,0.00015,2]
[424274966,1780728643000,-2080.68023042,0.00015,2]
[424274965,1780728643000,-922.61,0.00015,2]
[424274963,1780728643000,-500.0,0.00015,2]
[424274967,1780728643000,-2514.22316013,0.00015,14]
[424274971,1780728643000,-1000.0,0.00015,2]
[424275017,1780728644000,-983113.17888066,0.00015,2]
[424275019,1780728644000,-361.70503521,0.00015,2]
[424275018,1780728644000,-1037.0,0.00013699,2]
[424275030,1780728644000,-150.0,0.00015,2]
[424275031,1780728644000,-1238.84,0.00015,2]
[424275020,1780728644000,-1579.9,0.00015,2]
[424275027,1780728644000,-2000.0,0.00015,2]
[424275022,1780728644000,-428.80272023,0.00015,2]
[424275026,1780728644000,-2000.0,0.00015,2]
[424275028,1780728644000,-955.42,0.00015,2]
[424275023,1780728644000,-351.77766535,0.00015,2]
[424275025,1780728644000,-2687.0430685,0.00015,2]
[424275021,1780728644000,-234015.91734439,0.00015,2]
[424275024,1780728644000,-2000.0,0.00015,2]
[424275032,1780728644000,-2632.05436936,0.00015,2]
[424275034,1780728644000,-6111.0,0.00015002,2]
[424275035,1780728644000,-3068.63628192,0.00015033,2]
[424275033,1780728644000,-3548.45604345,0.00015,2]
[424275029,1780728644000,-1914.76,0.00015,2]
[424275078,1780728645000,-1000.0,0.00015156,2]
[424275079,1780728645000,-1000.0,0.00015156,2]
[424275070,1780728645000,-1000.0,0.00015156,2]
[424275074,1780728645000,-1000.0,0.00015156,2]
[424275072,1780728645000,-1000.0,0.00015156,2]
[424275071,1780728645000,-1000.0,0.00015156,2]
[424275069,1780728645000,-1000.0,0.00015156,2]
[424275077,1780728645000,-1000.0,0.00015156,2]
[424275073,1780728645000,-1000.0,0.00015156,2]
[424275090,1780728645000,-1000.0,0.00015156,2]
[424275068,1780728645000,-1000.0,0.00015156,2]
[424275075,1780728645000,-1000.0,0.00015156,2]
[424275092,1780728645000,-1000.0,0.00015156,2]
[424275096,1780728645000,-1000.0,0.00015156,2]
[424275093,1780728645000,-1000.0,0.00015156,2]
[424275086,1780728645000,-1000.0,0.00015156,2]
[424275059,1780728645000,-900.0,0.00015068,2]
[424275083,1780728645000,-1000.0,0.00015156,2]
[424275084,1780728645000,-1000.0,0.00015156,2]
[424275080,1780728645000,-1000.0,0.00015156,2]
[424275094,1780728645000,-1000.0,0.00015156,2]
[424275088,1780728645000,-1000.0,0.00015156,2]
[424275081,1780728645000,-1000.0,0.00015156,2]
[424275095,1780728645000,-1000.0,0.00015156,2]
[424275082,1780728645000,-1000.0,0.00015156,2]
[424275097,1780728645000,-1000.0,0.00015156,2]
[424275101,1780728645000,-1000.0,0.00015156,2]
[424275100,1780728645000,-1000.0,0.00015156,2]
[424275091,1780728645000,-1000.0,0.00015156,2]
[424275055,1780728645000,-324.3369,0.00015068,2]
[424275064,1780728645000,-350.0,0.00015102,2]
[424275063,1780728645000,-3898.87033474,0.000151,2]
[424275099,1780728645000,-880.49,0.00015156,2]
[424275037,1780728645000,-3068.63628192,0.00015044,2]
[424275036,1780728645000,-3068.63628192,0.00015039,2]
[424275038,1780728645000,-614.0,0.00015068,2]
[424275040,1780728645000,-324.3369,0.00015068,2]
[424275044,1780728645000,-324.3369,0.00015068,2]
[424275041,1780728645000,-324.3369,0.00015068,2]
[424275042,1780728645000,-324.3369,0.00015068,2]
[424275039,1780728645000,-324.3369,0.00015068,2]
[424275043,1780728645000,-324.3369,0.00015068,2]
[424275046,1780728645000,-324.3369,0.00015068,2]
[424275045,1780728645000,-324.3369,0.00015068,2]
[424275047,1780728645000,-324.3369,0.00015068,2]
[424275066,1780728645000,-1000.0,0.00015156,2]
[424275048,1780728645000,-324.3369,0.00015068,2]
[424275050,1780728645000,-324.3369,0.00015068,2]
[424275053,1780728645000,-324.3369,0.00015068,2]
[424275051,1780728645000,-324.3369,0.00015068,2]
[424275052,1780728645000,-324.3369,0.00015068,2]
[424275054,1780728645000,-324.3369,0.00015068,2]
[424275060,1780728645000,-3068.63628192,0.00015095,2]
[424275061,1780728645000,-350.0,0.00015096,2]
[424275067,1780728645000,-1000.0,0.00015156,2]
[424275065,1780728645000,-3068.63628192,0.00015112,2]
[424275058,1780728645000,-324.336896,0.00015068,2]
[424275056,1780728645000,-324.3369,0.00015068,2]
[424275062,1780728645000,-553.95499095,0.000151,2]
[424275057,1780728645000,-324.3369,0.00015068,2]
[424275049,1780728645000,-324.3369,0.00015068,2]
[424275104,1780728645000,-1000.0,0.00015156,2]
[424275076,1780728645000,-1000.0,0.00015156,2]
[424275107,1780728645000,-1000.0,0.00015156,2]
[424275134,1780728645000,-2000.0,0.00015262,2]
[424275138,1780728645000,-2000.0,0.00015262,2]
[424275146,1780728645000,-1613.0535,0.00015358,2]
[424275149,1780728645000,-3898.87033474,0.000154,2]
[424275147,1780728645000,-1284.8,0.000154,2]
[424275148,1780728645000,-553.95499095,0.000154,2]
[424275137,1780728645000,-2000.0,0.00015262,2]
[424275139,1780728645000,-1930.7,0.00015262,2]
[424275142,1780728645000,-758.42,0.00015262,2]
[424275140,1780728645000,-2000.0,0.00015262,2]
[424275145,1780728645000,-1107.63007,0.00015358,2]
[424275143,1780728645000,-1517.64,0.000153,2]
[424275141,1780728645000,-2000.0,0.00015262,2]
[424275144,1780728645000,-3354.78314526,0.00015307,2]
[424275150,1780728645000,-2000.0,0.000154,2]
[424275151,1780728645000,-350.0,0.00015415,2]
[424275154,1780728645000,-553.95499095,0.000155,2]
[424275153,1780728645000,-3354.78314526,0.00015467,2]
[424275158,1780728645000,-3354.78314526,0.00015647,2]
[424275156,1780728645000,-2000.0,0.000156,2]
[424275159,1780728645000,-3068.63628192,0.00015661,2]
[424275152,1780728645000,-455.76,0.00015464,2]
[424275155,1780728645000,-3898.87033474,0.000155,2]
[424275160,1780728645000,-350.0,0.00015686,2]
[424275157,1780728645000,-3354.78314526,0.00015633,2]
[424275161,1780728645000,-3068.63628192,0.00015693,2]
[424275164,1780728645000,-3068.63628192,0.00015706,2]
[424275163,1780728645000,-3898.87033474,0.000157,2]
[424275102,1780728645000,-1000.0,0.00015156,2]
[424275132,1780728645000,-2000.0,0.00015262,2]
[424275135,1780728645000,-1033.67,0.00015262,2]
[424275162,1780728645000,-553.95499095,0.000157,2]
[424275136,1780728645000,-2000.0,0.00015262,2]
[424275109,1780728645000,-1000.0,0.00015156,2]
[424275131,1780728645000,-2000.0,0.00015262,2]
[424275098,1780728645000,-1000.0,0.00015156,2]
[424275105,1780728645000,-1000.0,0.00015156,2]
[424275106,1780728645000,-1000.0,0.00015156,2]
[424275103,1780728645000,-1000.0,0.00015156,2]
[424275111,1780728645000,-1000.0,0.00015156,2]
[424275121,1780728645000,-350.0,0.00015172,2]
[424275119,1780728645000,-1000.0,0.00015156,2]
[424275123,1780728645000,-3898.87033474,0.000152,2]
[424275113,1780728645000,-1000.0,0.00015156,2]
[424275110,1780728645000,-1000.0,0.00015156,2]
[424275122,1780728645000,-553.95499095,0.000152,2]